Cogmind - Beta 11 X8 @@@ ROGUE MODE // 2021.10.25 @ 21:08:14 Player: Runia Result: Self-destructed Performance ------------- Evolutions (4) 2000 Regions Visited (11) 2200 Robots Destroyed (210) 1050 Value Destroyed (7072) 7072 Prototype IDs (19) 380 Alien Tech Used (0) 0 Bonus (782) 782 TOTAL SCORE: 13484 Bonus ------- High Alert Combat Kills 1517 Met Data Miner 300 Friendly Fire -1035 Cogmind --------- Core Integrity 608/850 Matter 274/300 Energy 500/500 System Corruption 2% Temperature Danger (465) Movement Walking (120) Location -6/Factory Parts ------- > --- POWER (1) -------- F-cell Engine > --- PROPULSION (4) --- Enhanced Flexi-carbon Leg Enhanced Flexi-carbon Leg Enhanced Flexi-carbon Leg > --- UTILITY (7) ------ High-capacity Storage Unit Advanced Targeting Computer Experimental Thermal Shield > --- WEAPON (3) ------- Makeshift Laser Plasma Rifle Plasma Rifle > --- INVENTORY (20) --- F-cell Engine Armored Treads Medium Treads Advanced Energy Well (500) Matter Filter Transmission Jammer Powered Armor System Mapper Ghost Barrier Quantum Router Long-range Tractor Beam Improved Field Recycling Unit (0) Gatling Laser Proton Cannon Cooled Particle Cannon Compact Ion Cannon Spear Dirty Bomb Trap Peak State ------------ > --- POWER ------------ Antimatter Reactor > --- PROPULSION ------- Carbon-fiber Leg Enhanced Flexi-carbon Leg Enhanced Flexi-carbon Leg Enhanced Flexi-carbon Leg > --- UTILITY ---------- High-capacity Storage Unit Improved Sensor Array Advanced Terrain Scanner Advanced Targeting Computer Layered Light Armor Plating Layered Medium Armor Plating Experimental Thermal Shield > --- WEAPON ----------- Makeshift Laser Compact Ion Cannon Spear > --- INVENTORY -------- Reinforced Deuterium Engine Armored Treads Medium Treads Enhanced Flexi-carbon Leg Advanced Energy Well Matter Filter Transmission Jammer Powered Armor System Mapper Ghost Barrier Quantum Router Long-range Tractor Beam Improved Field Recycling Unit Gatling Laser Improved EM Pulse Cannon Cooled Particle Cannon Neutron Cannon Gauss Rifle Mass Driver Dirty Bomb Trap [Rating: 85] Favorites ----------- Power Improved Deuterium Engine Engine Improved Deuterium Engine Reactor Antimatter Reactor Propulsion Light Treads Treads Light Treads Leg Enhanced Flexi-carbon Leg Wheel Armored Huge Wheel Utility Advanced Targeting Computer Device Improved Cooling System Storage High-capacity Storage Unit Processor Advanced Targeting Computer Hackware Authchip [Storage] Protection Hardened Heavy Armor Plating Weapon Autogun Energy Gun Plasma Rifle Energy Cannon Plasma Cannon Ballistic Gun Autogun Ballistic Cannon Heavy Assault Cannon Launcher Grenade Launcher Piercing Weapon Spear Special Melee Weapon Improved Datajack Build | -11 -10 -10 -10 -9 -8 -7 -7 -7 -7 -6 -6 ------- Run | Scr Mat Min Exi Min Mat Fac Low Low Dat Pro Fac Slots Evolved 8 | . . . . . 4 2 . . . . 2 Power . | . . . . . . . . . . . . Propulsion 2 | . . . . . 1 . . . . . 1 Utility 5 | . . . . . 2 2 . . . . 1 Weapon 1 | . . . . . 1 . . . . . . Parts Attached 215 | . 7 3 . 2 45 95 8 9 20 10 16 Power 6 | . . . . . 2 2 . . 1 . 1 Engine 5 | . . . . . 2 2 . . . . 1 Core . | . . . . . . . . . . . . Reactor 1 | . . . . . . . . . 1 . . Propulsion 37 | . 2 . . . 14 11 . . 5 . 5 Treads 28 | . 2 . . . 14 9 . . 2 . 1 Leg 7 | . . . . . . . . . 3 . 4 Wheel 2 | . . . . . . 2 . . . . . Hover . | . . . . . . . . . . . . Flight . | . . . . . . . . . . . . Utility 77 | . 3 1 . . 10 43 3 3 8 3 3 Device 41 | . . . . . 1 27 3 2 4 2 2 Storage 7 | . 3 1 . . 2 . . . 1 . . Processor 6 | . . . . . 2 4 . . . . . Hackware 2 | . . . . . 1 1 . . . . . Protection 21 | . . . . . 4 11 . 1 3 1 1 Artifact . | . . . . . . . . . . . . Weapon 95 | . 2 2 . 2 19 39 5 6 6 7 7 Energy Gun 5 | . . . . . 1 . . . . 1 3 Energy Cannon 13 | . . . . . . 6 . . 2 1 4 Ballistic Gun 41 | . 2 1 . 1 11 19 1 2 3 1 . Ballistic Cannon 1 | . . . . . 1 . . . . . . Launcher 27 | . . 1 . 1 4 13 3 2 . 3 . Special Weapon . | . . . . . . . . . . . . Impact Weapon . | . . . . . . . . . . . . Slashing Weapon . | . . . . . . . . . . . . Piercing Weapon 6 | . . . . . . 1 1 2 1 1 . Special Melee Weapon 2 | . . . . . 2 . . . . . . Unidentified Prototypes 8 | . . . . . 1 2 . . 3 . 2 Parts Lost 29 | . . . . . 4 7 1 1 5 4 7 Power . | . . . . . . . . . . . . Propulsion 7 | . . . . . 2 1 . . 2 . 2 Utility 11 | . . . . . 1 2 . 1 2 1 4 Weapon 11 | . . . . . 1 4 1 . 1 3 1 Highest Loss Streak 4 | . . . . . 3 3 1 1 4 3 3 Average Slot Usage (%) 92 | . 98 100 100 100 97 90 84 84 92 88 93 Engine 7 | . 14 14 14 14 9 7 7 7 2 . 3 Treads 19 | . 26 28 28 28 26 20 7 7 11 . . Leg 2 | . 1 . . . . . . . 4 23 25 Wheel 1 | . . . . . . 1 7 7 2 . . Device 5 | . . . . . . 8 7 7 8 7 16 Storage 11 | . 26 28 28 28 13 7 7 7 10 7 6 Processor 9 | . . . . . 11 13 7 7 7 7 6 Protection 7 | . . . . . 6 7 15 15 15 15 11 Ballistic Gun 20 | . 28 28 28 27 24 19 17 20 21 5 . Naked Turns . | . . . . . . . . . . . . Heaviest Build 94 | 13 34 35 35 35 67 94 94 91 93 94 86 Greatest Support 99 | 20 40 40 40 40 67 68 28 28 84 84 99 Greatest Overweight (x) 4 | . . . . . 1 3 3 3 4 1 . Average Overweight (x) . | . . . . . . 1 3 3 1 . . Largest Inventory Capacity 20 | 8 15 15 15 15 20 20 20 20 20 20 20 Average Capacity 18 | 8 11 15 15 15 16 20 20 20 20 20 20 Most Carried 20 | 5 15 15 15 15 20 20 20 19 20 20 20 Average Carried 17 | 5 10 14 15 15 15 19 19 18 19 19 19 Final Capacity 20 | 8 15 15 15 15 20 20 20 20 20 20 20 Final Carried 20 | 4 15 15 15 15 20 20 19 18 20 20 18 Class Distribution -------------------- 23% | Gunner 21% | Scavenger-Gunner 21% | Mutant 17% | Scavenger-Mutant 11% | Scavenger-Tank 3% | Skirmisher Dominant Class ---------------- Mutant | -10/Materials Mutant | -10/Mines Mutant | -10/Exiles Mutant | -9/Mines Gunner | -8/Materials Scavenger-Gunner | -7/Factory Scavenger-Mutant | -7/Lower Caves Scavenger-Tank | -7/Lower Caves Scavenger-Tank | -7/Data Miner Scavenger-Mutant | -6/Proximity Caves Scavenger-Mutant | -6/Factory Resources | -11 -10 -10 -10 -9 -8 -7 -7 -7 -7 -6 -6 ----------- Run | Scr Mat Min Exi Min Mat Fac Low Low Dat Pro Fac Matter Collected 6519 | 200 394 211 . 152 1599 2767 108 293 426 173 196 Remotely 1806 | . . . . . . 1651 38 97 20 . . Salvage Created 8154 | . 523 69 . 252 2151 3537 47 254 426 479 416 Parts 473 | . 32 6 . 8 150 193 4 15 23 21 21 Haulers Intercepted 11 | . 2 . . . 6 3 . . . . . Recyclers Shooed 4 | . 1 1 . . 1 1 . . . . . Parts Field Recycled . | . . . . . . . . . . . . Retrieved Matter . | . . . . . . . . . . . . Parts Self-Destructed 35 | . . . . . . . 3 15 . 17 . Prevented . | . . . . . . . . . . . . Kills | -11 -10 -10 -10 -9 -8 -7 -7 -7 -7 -6 -6 ------- Run | Scr Mat Min Exi Min Mat Fac Low Low Dat Pro Fac Combat Hostiles Destroyed 153 | . 9 2 . 4 34 65 4 9 4 14 8 Melee 8 | . . . . . . . . . . 4 4 Guns 78 | . 9 1 . 1 24 35 1 3 4 . . Cannons 12 | . . . . . 1 6 . . . 4 1 AOE 50 | . . 1 . 3 9 22 3 6 . 6 . Classes Destroyed 21 | . 6 1 . 3 5 4 . 1 . 1 . Worker 21 | . . 1 . 1 7 12 . . . . . Builder 7 | . . . . 1 3 3 . . . . . Tunneler 3 | . . . . . 1 2 . . . . . Hauler 11 | . 2 . . . 6 3 . . . . . Recycler 7 | . 1 . . 1 2 3 . . . . . Minesweeper 1 | . . . . . . . . . . 1 . Mechanic 2 | . . . . . 1 1 . . . . . Operator 4 | . 1 . . . 2 1 . . . . . Watcher 7 | . 1 . . . 4 2 . . . . . Swarmer 36 | . 3 . . . 7 10 4 4 . 8 . Grunt 60 | . 6 2 . . 16 28 . 3 . 3 2 Brawler 3 | . . . . . . 2 . 1 . . . Duelist 4 | . . . . . . 2 . . . 2 . Sentry 18 | . . . . . 9 6 . . . 1 2 Demolisher 1 | . . . . 1 . . . . . . . Specialist 2 | . . . . . . 2 . . . . . Hunter 3 | . . . . . 1 1 . . . . 1 Programmer 13 | . . . . . . 10 . . . . 3 Heavy 5 | . . . . . 1 4 . . . . . Behemoth 1 | . . . . . . . . 1 . . . Enhanced Grunt 4 | . . . . . . . . . 4 . . Assembled 3 | . . . . 3 . . . . . . . Best Kill Streak 10 | . 5 2 . 4 9 10 4 4 2 8 2 Combat Bots Only 8 | . 4 2 . 4 7 8 4 4 2 8 2 Max Kills in Single Turn 5 | . 1 1 . 2 5 4 2 2 1 4 1 Gunslinging 1 | . . . . . . . . 1 . . . Exploded 4 | . . 1 . 2 3 3 2 2 . 4 . Melee 1 | . . . . . . . . . . 1 1 Uniques/NPCs Destroyed 2 | . . . . 1 . . . . 1 . . YI-UF0 (-9/Mines) Data Miner (-7/Data Miner) Combat | -11 -10 -10 -10 -9 -8 -7 -7 -7 -7 -6 -6 -------- Run | Scr Mat Min Exi Min Mat Fac Low Low Dat Pro Fac Damage Taken 10278 | . 215 16 . 75 1477 4144 144 751 1355 1014 1087 Core 862 | . 50 . . . 146 225 . . 96 103 242 Absorbed by Shields 14 | . . . . . . 14 . . . . . Core Remaining (%) 73 | 100 . . . 80 73 . . . . 39 . Volleys Fired 447 | . 32 5 . 16 111 196 4 16 23 11 33 Largest 3 | . 2 2 . 2 3 3 2 3 3 1 3 Hottest 200 | . 46 46 . 46 83 133 56 84 84 90 200 Shots Fired 1043 | . 64 8 . 30 301 462 6 34 67 11 60 Gun 908 | . 64 6 . 28 282 389 4 27 67 . 41 Cannon 78 | . . . . . 6 46 . . . 7 19 Launcher 57 | . . 2 . 2 13 27 2 7 . 4 . Special . | . . . . . . . . . . . . Kinetic 883 | . 64 6 . 28 288 399 4 27 67 . . Thermal 90 | . . . . . . 29 . . . 7 54 Explosive 57 | . . 2 . 2 13 27 2 7 . 4 . Electromagnetic 13 | . . . . . . 7 . . . . 6 Robot Hit Streak 23 | . 7 10 . 13 14 20 2 11 23 4 9 Robot Miss Streak 6 | . 4 . . 2 4 4 1 1 4 1 6 Penetration Max 1 | . . . . . . 1 . . 1 . . Secondary Targets 10 | . 2 . . . 1 5 . 1 1 . . Max Gunslinging Chain 1 | . 1 . . . 1 1 . 1 1 . . Shots Hit Robots 696 | . 38 4 . 17 191 303 2 30 52 15 44 Core Hits 421 | . 16 5 . 14 106 188 6 21 24 25 16 Critical Kills 2 | . . . . . . 2 . . . . . Critical Parts Destroyed 8 | . . . . . 1 4 . 1 2 . . Critical Strikes 17 | . . . . . 1 7 . 1 3 1 4 Burn 4 | . . . . . . . . . . . 4 Meltdown 1 | . . . . . . 1 . . . . . Destroy 10 | . . . . . 1 5 . 1 3 . . Blast 1 | . . . . . . 1 . . . . . Puncture 1 | . . . . . . . . . . 1 . Melee Attacks 36 | . . . . . . 5 1 . 8 11 11 Impact . | . . . . . . . . . . . . Slashing . | . . . . . . . . . . . . Piercing 36 | . . . . . . 5 1 . 8 11 11 Sneak Attacks 3 | . . . . . . . . . 1 1 1 Combat Hostiles . | . . . . . . . . . . . . Follow-up Attacks . | . . . . . . . . . . . . Damage Inflicted 20155 | . 583 222 . 523 4006 9928 287 1162 1232 894 1318 Guns 11785 | . 583 90 . 274 2733 5761 23 574 1167 . 580 Cannons 1687 | . . . . . 45 1013 . . . 229 400 Explosions 6067 | . . 132 . 249 1228 3154 264 588 . 391 61 Melee 616 | . . . . . . . . . 65 274 277 Ramming . | . . . . . . . . . . . . Kinetic 11691 | . 583 90 . 274 2778 6202 23 574 1167 . . Thermal 1522 | . . . . . . 390 . . . 229 903 Explosive 5736 | . . 132 . 249 1228 2884 264 588 . 391 . Electromagnetic 590 | . . . . . . 452 . . . . 138 Impact . | . . . . . . . . . . . . Slashing . | . . . . . . . . . . . . Piercing 616 | . . . . . . . . . 65 274 277 Highest Corruption 3 | . . . . . . 3 3 3 3 3 2 Average Corruption 2 | . . . . . . 2 3 3 3 3 2 Corruption Purged . | . . . . . . . . . . . . Effects 71 | . . . . . . 37 5 9 13 6 1 Message Errors 21 | . . . . . . 13 . 4 2 2 . Matter Fused 14 | . . . . . . 4 1 3 5 1 . Heat Flow Errors 10 | . . . . . . 9 . . . 1 . Energy Discharges 13 | . . . . . . 6 2 2 1 1 1 Data Loss (minor) 10 | . . . . . . 3 2 . 4 1 . Weapon Failures 3 | . . . . . . 2 . . 1 . . Overload Shots . | . . . . . . . . . . . . Overflow Damage 158 | . . . . . 5 69 3 . . 46 35 Projectiles 28 | . . . . . . 28 . . . . . Explosions 49 | . . . . . 5 41 3 . . . . Melee 81 | . . . . . . . . . . 46 35 Knockbacks 2 | . . . . . . 2 . . . . . Impact . | . . . . . . . . . . . . Kinetic 2 | . . . . . . 2 . . . . . Secondary . | . . . . . . . . . . . . Self-Inflicted Damage 288 | . . . . 35 79 40 25 39 . 70 . Shots 12 | . . . . 1 5 2 1 1 . 2 . Rammed . | . . . . . . . . . . . . Targets Rammed . | . . . . . . . . . . . . Kicked . | . . . . . . . . . . . . Crushed . | . . . . . . . . . . . . Highest Temperature 484 | . 21 15 . 12 154 354 . . 100 318 484 Average Temperature 85 | . 7 7 . 5 26 98 . . 49 114 172 Received Heat Transfer 1986 | . 72 9 . . 459 678 . 123 180 165 300 Effects 15 | . . . . . . 7 . . . . 8 Interference 7 | . . . . . . 6 . . . . 1 Matter Decay 2 | . . . . . . . . . . . 2 Short Circuit 3 | . . . . . . 1 . . . . 2 Damage (major) 3 | . . . . . . . . . . . 3 Siege Activations . | . . . . . . . . . . . . Robots Corrupted 2 | . . . . . . 1 . . . . 1 Combat Hostiles 2 | . . . . . . 1 . . . . 1 Parts Fried 2 | . . . . . . . . . . . 2 Impact Corruptions . | . . . . . . . . . . . . Robots Melted 3 | . . . . . . 1 . . . . 2 Combat Hostiles 3 | . . . . . . 1 . . . . 2 Parts Melted 5 | . . . . 1 . 1 . . . . 3 Heat Transferred 2686 | . . . . . . 718 . . . 125 1843 Parts Sabotaged . | . . . . . . . . . . . . Parts Stolen . | . . . . . . . . . . . . Parts Stripped . | . . . . . . . . . . . . Power Chain Reactions 1 | . . . . . . . . . . . 1 Missiles Intercepted . | . . . . . . . . . . . . Alert | -11 -10 -10 -10 -9 -8 -7 -7 -7 -7 -6 -6 ------- Run | Scr Mat Min Exi Min Mat Fac Low Low Dat Pro Fac Peak Influence 1650 | . 132 94 . 32 614 1650 . . . . 349 Initial 268 | . . 36 . . 12 268 . . . . 56 Average 451 | . 55 41 . 18 382 653 . . . . 216 Maximum Alert Level 5 | . . . . . 2 5 . . . . 1 Low Security (%) 29 | 100 100 100 . 100 7 18 . . . . 36 Level 1 29 | . . . . . 48 23 . . . . 63 Level 2 15 | . . . . . 44 6 . . . . . Level 3 13 | . . . . . . 28 . . . . . Level 4 11 | . . . . . . 22 . . . . . Level 5 . | . . . . . . . . . . . . High Security . | . . . . . . . . . . . . Max Security . | . . . . . . . . . . . . Squads Dispatched 26 | . 1 . . . 3 19 . . . . 3 Investigation 4 | . 1 . . . 2 . . . . . 1 Extermination 10 | . . . . . . 9 . . . . 1 Reinforcement 8 | . . . . . 1 6 . . . . 1 Assault 3 | . . . . . . 3 . . . . . Garrison 1 | . . . . . . 1 . . . . . Intercept . | . . . . . . . . . . . . Construction Impeded 4 | . . . . . . 3 . . . . 1 Haulers Reinforced . | . . . . . . . . . . . . Active Scanning Responses . | . . . . . . . . . . . . Cargo Convoy Interrupts 1 | . . . . . . 1 . . . . . Stealth | -11 -10 -10 -10 -9 -8 -7 -7 -7 -7 -6 -6 --------- Run | Scr Mat Min Exi Min Mat Fac Low Low Dat Pro Fac Distress Signals 5 | . 1 . . . 2 1 . . . . 1 Communications Jammed 26 | . . . . . . 26 . . . . . Distress Signals 9 | . . . . . . 9 . . . . . Times Spotted 221 | . 15 2 . 7 53 94 4 9 4 15 18 Peak Tracking Total 9 | . 5 2 . 6 4 6 4 4 2 9 4 Tactical Retreats 7 | . . . . . 1 2 . . . 1 3 Traps | -11 -10 -10 -10 -9 -8 -7 -7 -7 -7 -6 -6 ------- Run | Scr Mat Min Exi Min Mat Fac Low Low Dat Pro Fac Traps Triggered 4 | . . . . . 1 3 . . . . . Indirectly . | . . . . . . . . . . . . Trap Hack Attempts . | . . . . . . . . . . . . Triggered . | . . . . . . . . . . . . Disarmed . | . . . . . . . . . . . . Reprogrammed . | . . . . . . . . . . . . Reused . | . . . . . . . . . . . . Traps Extracted . | . . . . . . . . . . . . Installed . | . . . . . . . . . . . . Triggered 2 | . . . . . . 1 . . . 1 . Machines | -11 -10 -10 -10 -9 -8 -7 -7 -7 -7 -6 -6 ---------- Run | Scr Mat Min Exi Min Mat Fac Low Low Dat Pro Fac Machines Disabled 15 | . . . . . 2 12 . . 1 . . Max in Single Turn 2 | . . . . . 1 2 . . 1 . . Garrison Access 3 | . . . . . 1 1 . . . . 1 Machines Sabotaged . | . . . . . . . . . . . . Garrisons Compromised 1 | . . . . . . 1 . . . . . Overloaded Fab Kills . | . . . . . . . . . . . . Hacking | -11 -10 -10 -10 -9 -8 -7 -7 -7 -7 -6 -6 --------- Run | Scr Mat Min Exi Min Mat Fac Low Low Dat Pro Fac Machines Accessed 37 | . 6 . 1 . 11 14 . . 4 . 1 Terminals 18 | . 5 . . . 7 6 . . . . . Fabricators 2 | . . . . . . 2 . . . . . Repair Stations 2 | . . . . . . 2 . . . . . Recycling Units 5 | . 1 . . . 2 2 . . . . . Scanalyzers 2 | . . . . . 1 1 . . . . . Garrison Access 3 | . . . . . 1 1 . . . . 1 Total Hacks 121 | . 14 . 1 . 34 37 . . 32 . 3 Successful 83 | . 10 . 1 . 22 17 . . 32 . 1 Failed 38 | . 4 . . . 12 20 . . . . 2 Catastrophic 4 | . 1 . . . . 3 . . . . . Database Lockouts . | . . . . . . . . . . . . Manual 22 | . 5 . . . 14 2 . . . . 1 Terminals 51 | . 13 . . . 22 16 . . . . . Fabricators 6 | . . . . . . 6 . . . . . Repair Stations 3 | . . . . . . 3 . . . . . Recycling Units 12 | . 1 . . . 5 6 . . . . . Scanalyzers 11 | . . . . . 6 5 . . . . . Garrison Access 5 | . . . . . 1 1 . . . . 3 Terminal Hacks 55 | . 7 . 1 . 10 5 . . 32 . . Record 12 | . . . 1 . . . . . 11 . . Part Schematic 12 | . . . . . 1 . . . 11 . . Robot Schematic 7 | . . . . . . . . . 7 . . Prototype ID Bank 5 | . 1 . . . 1 . . . 3 . . Branch Access Points 1 | . 1 . . . . . . . . . . Emergency Access Points 1 | . 1 . . . . . . . . . . Terminal Index 2 | . 1 . . . 1 . . . . . . Scanalyzer Index 1 | . . . . . . 1 . . . . . Alert Level 4 | . . . . . 3 1 . . . . . Unreport Threat 2 | . . . . . 1 1 . . . . . Locate Traps 2 | . 1 . . . 1 . . . . . . Hauler Manifests 1 | . 1 . . . . . . . . . . Registered Components 1 | . . . . . . 1 . . . . . Zone Layout 4 | . 1 . . . 2 1 . . . . . Fabricator Hacks 3 | . . . . . . 3 . . . . . Load Schematic 2 | . . . . . . 2 . . . . . Build 1 | . . . . . . 1 . . . . . Repair Station Hacks 2 | . . . . . . 2 . . . . . Scan Component 1 | . . . . . . 1 . . . . . Repair 1 | . . . . . . 1 . . . . . Recycling Unit Hacks 6 | . . . . . 3 3 . . . . . Process 2 | . . . . . 1 1 . . . . . Report Inventory 1 | . . . . . 1 . . . . . . Retrieve Matter 3 | . . . . . 1 2 . . . . . Scanalyzer 7 | . . . . . 4 3 . . . . . Insert Component 4 | . . . . . 2 2 . . . . . Analyze 3 | . . . . . 2 1 . . . . . Garrison Access Hacks 2 | . . . . . 1 1 . . . . . Seal Access 2 | . . . . . 1 1 . . . . . Unauthorized Hacks 8 | . 3 . . . 4 . . . . . 1 Terminals 3 | . 2 . . . 1 . . . . . . Track 1 | . 1 . . . . . . . . . . Operators 2 | . 1 . . . 1 . . . . . . Fabricators . | . . . . . . . . . . . . Repair Stations . | . . . . . . . . . . . . Recycling Units 3 | . 1 . . . 2 . . . . . . Recyclers 1 | . . . . . 1 . . . . . . Mask 1 | . . . . . 1 . . . . . . Tunnel 1 | . 1 . . . . . . . . . . Scanalyzers 1 | . . . . . 1 . . . . . . Extract 1 | . . . . . 1 . . . . . . Garrison Access 1 | . . . . . . . . . . . 1 Jam 1 | . . . . . . . . . . . 1 Data Cores Recovered 3 | . 1 . . . 2 . . . . . . Used 2 | . . . . . 2 . . . . . . Hacking Detections 28 | . 5 . . . 10 12 . . . . 1 Full Trace Events . | . . . . . . . . . . . . Feedback Events . | . . . . . . . . . . . . Feedback Blocked . | . . . . . . . . . . . . Robot Schematics Acquired 7 | . . . . . . . . . 7 . . Robots Built . | . . . . . . . . . . . . Authchips . | . . . . . . . . . . . . Time . | . . . . . . . . . . . . Total Robot Build Rating . | . . . . . . . . . . . . Part Schematics Acquired 16 | . . . . . 4 1 . . 11 . . Parts Built 2 | . . . . . . 2 . . . . . Authchips 1 | . . . . . . 1 . . . . . Time 42 | . . . . . . 42 . . . . . Total Part Build Rating 8 | . . . . . . 8 . . . . . Parts Repaired 1 | . . . . . . 1 . . . . . Time 22 | . . . . . . 22 . . . . . Parts Recycled . | . . . . . . . . . . . . Recycled Matter 270 | . . . . . 194 76 . . . . . Retrieved Matter 107 | . . . . . 31 76 . . . . . Retrieved Components . | . . . . . . . . . . . . Parts Scanalyzed 4 | . . . . . 2 2 . . . . . Part Schematics Acquired 3 | . . . . . 2 1 . . . . . Parts Damaged 2 | . . . . . 2 . . . . . . Bothacking | -11 -10 -10 -10 -9 -8 -7 -7 -7 -7 -6 -6 ------------ Run | Scr Mat Min Exi Min Mat Fac Low Low Dat Pro Fac Used RIF Installer . | . . . . . . . . . . . . Robots Hacked . | . . . . . . . . . . . . Non-combat . | . . . . . . . . . . . . Combat . | . . . . . . . . . . . . Robot Hacks Applied . | . . . . . . . . . . . . Relay Couplers Released 3 | . . . . . . 3 . . . . . Programmers 3 | . . . . . . 3 . . . . . Robots Rewired . | . . . . . . . . . . . . Allies Hacked . | . . . . . . . . . . . . Hacks Repelled . | . . . . . . . . . . . . Allies | -11 -10 -10 -10 -9 -8 -7 -7 -7 -7 -6 -6 -------- Run | Scr Mat Min Exi Min Mat Fac Low Low Dat Pro Fac Total Allies 4 | . . 1 . 3 . . . . . . . Largest Group 3 | . . 1 . 3 1 . . . . . . Highest-Rated Group 40 | . . 31 . 40 16 . . . . . . Highest-Rated Ally 31 | . . 31 . 16 16 . . . . . . Total Orders . | . . . . . . . . . . . . Ally Attacks 26 | . . 1 . 24 1 . . . . . . Total Damage 281 | . . 20 . 261 . . . . . . . Kills 4 | . . . . 4 . . . . . . . Allies Corrupted . | . . . . . . . . . . . . Allies Melted . | . . . . . . . . . . . . Intel | -11 -10 -10 -10 -9 -8 -7 -7 -7 -7 -6 -6 ------- Run | Scr Mat Min Exi Min Mat Fac Low Low Dat Pro Fac Robot Analysis Total . | . . . . . . . . . . . . Derelict Logs Recovered 4 | . . 1 . 1 . . 1 1 . . . Drone Launches . | . . . . . . . . . . . . Drone Recoveries . | . . . . . . . . . . . . Exploration | -11 -10 -10 -10 -9 -8 -7 -7 -7 -7 -6 -6 ------------- Run | Scr Mat Min Exi Min Mat Fac Low Low Dat Pro Fac Turns Passed 13708 | 1 972 497 378 277 3044 5439 635 685 525 478 777 Spaces Moved 6533 | 1 534 297 237 147 1421 2053 422 434 189 330 468 Core . | . . . . . . . . . . . . Treads 4317 | . 506 297 237 147 1421 1610 . . 99 . . Legs 834 | 1 28 . . . . . . . 7 330 468 Wheels 1382 | . . . . . . 443 422 434 83 . . Hover . | . . . . . . . . . . . . Flight . | . . . . . . . . . . . . Fastest Speed 120 | 120 120 160 160 160 150 130 145 145 145 120 120 Average Speed 174 | 120 157 160 160 160 161 221 145 145 200 124 120 Slowest Speed 490 | 120 160 160 160 160 235 250 145 145 490 190 120 Overloaded Moves . | . . . . . . . . . . . . Propulsion Burnouts . | . . . . . . . . . . . . Robots Hopped . | . . . . . . . . . . . . Cave-ins Triggered . | . . . . . . . . . . . . Exploration Rate (%) 56 | 2 78 84 56 34 93 37 69 75 81 53 10 Regions Visited 11 Branch Regions 7 Pre-discovered Areas 5 | . 1 . 1 1 . . . 1 1 . . Known Exits Taken 2 | . 1 . . . . . . . . 1 . Unknown Exits Taken 9 | 1 . 1 1 1 1 1 1 1 1 . . Scrap Searched 6 | . . 2 . . . . 2 1 . 1 . Spaces Dug 16 | . . . . . 2 8 1 . . . 5 Terrain Destroyed 311 | . . 7 . 17 57 134 24 33 3 23 13 Melee 3 | . . . . . . . 1 . . . 2 Projectile 26 | . . . . . 5 8 3 . 3 2 5 AOE 282 | . . 7 . 17 52 126 20 33 . 21 6 Terrain Rammed . | . . . . . . . . . . . . Walls Destroyed . | . . . . . . . . . . . . Machines Disabled . | . . . . . . . . . . . . Actions | -11 -10 -10 -10 -9 -8 -7 -7 -7 -7 -6 -6 --------- Run | Scr Mat Min Exi Min Mat Fac Low Low Dat Pro Fac Total 8057 | 2 614 312 236 164 1991 2600 435 458 268 364 613 Wait 655 | . 19 5 . . 368 178 . . 14 1 70 Move 6522 | . 533 296 236 146 1420 2052 421 433 188 329 468 Hop . | . . . . . . . . . . . . Pick Up 83 | . 16 1 . . 18 30 . . 10 2 6 Fast Attach 35 | . 1 1 . . 9 14 . . 4 2 4 Attach 38 | . 2 . . . 7 16 1 1 6 2 3 Detach 3 | . . . . . . 3 . . . . . Swap 142 | . 4 2 . 2 29 65 7 8 10 6 9 Drop 93 | 2 7 2 . . 29 38 1 . 5 . 9 Fire 447 | . 32 5 . 16 111 196 4 16 23 11 33 Melee 36 | . . . . . . 5 1 . 8 11 11 Ram . | . . . . . . . . . . . . Kick . | . . . . . . . . . . . . Crush . | . . . . . . . . . . . . Escape Stasis 3 | . . . . . . 3 . . . . . Rewire . | . . . . . . . . . . . . Trap . | . . . . . . . . . . . . Miscellaneous . | . . . . . . . . . . . . Route ------- -11/Scrapyard -10/Materials (discovered 3 exits: [*Mat x2] / *Min) -10/Mines (discovered 2 exits: [*Mat] / *Exi) -10/Exiles -9/Mines -8/Materials (discovered 4 exits: *Fac x3 / [*Sto]) -7/Factory (discovered 3 exits: *Fac x2 / [*Low]) -7/Lower Caves -7/Lower Caves -7/Data Miner -6/Proximity Caves -6/Factory History --------- Turn | Location | Event 2 | -11/Scrapyard | Discovered new exit (range 0) 2 | -11/Scrapyard | Entered Materials 23 | -10/Materials | Discovered new exit (range 15) 70 | -10/Materials | Identified exit to Mines 110 | -10/Materials | Discovered new exit (range 15) 318 | -10/Materials | Build established: Mutant 386 | -10/Materials | Discovered new exit (range 13) 974 | -10/Materials | Entered Mines 1090 | -10/Mines | Found a hidden stash of uninstalled traps 1117 | -10/Mines | Received a Mining Laser from a helpful Derelict 1198 | -10/Mines | Learned Materials terminal intel 1287 | -10/Mines | Found a damaged Exp. Sensor Array with a note attached 1291 | -10/Mines | Found Prototype Device 1310 | -10/Mines | Discovered new exit (range 4) 1463 | -10/Mines | Deemed a non-threat by the Exiles lab entrance 1465 | -10/Mines | Discovered new exit (range 5) 1471 | -10/Mines | Entered Exiles 1510 | -10/Exiles | Met 8R-AWN 1539 | -10/Exiles | Met EX-HEX 1601 | -10/Exiles | Met EX-DEC 1627 | -10/Exiles | Learned location of Zion (-6) 1836 | -10/Exiles | Discovered new exit (range 10) 1849 | -10/Exiles | Entered Mines 1903 | -9/Mines | Assisted by bots powering up and referring to "LRC-V3" 1981 | -9/Mines | Assembled infested the area 2030 | -9/Mines | YI-UF0 nonchalantly dropped a Grenade Launcher on the ground 2063 | -9/Mines | Destroyed YI-UF0 2090 | -9/Mines | Discovered new exit (range 9) 2126 | -9/Mines | Entered Materials 2126 | -8/Materials | Accompanied by 1 ally 2126 | -8/Materials | Evolved 4 slots: Propulsion x1, Utility x2, Weapon x1 2127 | -8/Materials | Loaded intel: 12 terminal locations 2424 | -8/Materials | Build established: Gunner 3008 | -8/Materials | Discovered new exit (range 5) 3115 | -8/Materials | Build established: Scavenger-Gunner 3208 | -8/Materials | Discovered new exit (range 16) 3216 | -8/Materials | Destroyed 7 combat bots 3380 | -8/Materials | Discovered new exit (range 5) 3457 | -8/Materials | Build established: Gunner 3529 | -8/Materials | Identified Exp. Sensor Array 4650 | -8/Materials | Discovered new exit (range 16) 4715 | -8/Materials | Lost 3 parts (1n1u1w) 5170 | -8/Materials | Entered Factory 5170 | -7/Factory | Evolved 2 slots: Utility x2 5482 | -7/Factory | Build established: Skirmisher 5924 | -7/Factory | Discovered new exit (range 20) 5937 | -7/Factory | Build established: Mutant 6694 | -7/Factory | Build established: Gunner 6814 | -7/Factory | Cargo convoy interrupted 6980 | -7/Factory | Lost 3 parts (1u2w) 7025 | -7/Factory | Found Powered Armor 7144 | -7/Factory | Discovered new exit (range 9) 7558 | -7/Factory | Build established: Scavenger-Gunner 7570 | -7/Factory | First assault squad dispatched 9314 | -7/Factory | Identified exit to Factory 10049 | -7/Factory | Garrison activated, responded to threat 10227 | -7/Factory | Build established: Scavenger-Tank 10414 | -7/Factory | Repaired Hrd. Heavy Armor Plating 10510 | -7/Factory | Fabricated Gauss Rifle? 10596 | -7/Factory | Destroyed 8 combat bots 10605 | -7/Factory | Discovered new exit (range 3) 10609 | -7/Factory | Entered Lower Caves 10699 | -7/Lower Caves | Learned Factory interactive machine intel 10837 | -7/Lower Caves | Build established: Scavenger-Mutant 11221 | -7/Lower Caves | Discovered new exit (range 14) 11244 | -7/Lower Caves | Entered another Lower Caves area 11594 | -7/Lower Caves | Spotted B-75 Beast 11749 | -7/Lower Caves | Build established: Scavenger-Tank 11828 | -7/Lower Caves | Destroyed B-75 Beast 11894 | -7/Lower Caves | Learned location of Extension (-5) 11914 | -7/Lower Caves | Discovered new exit (range 11) 11929 | -7/Lower Caves | Entered Data Miner 11929 | -7/Data Miner | Discovered new exit (range 6) 11957 | -7/Data Miner | Met Data Miner 11982 | -7/Data Miner | Learned location of Section 7 (-3) 11982 | -7/Data Miner | Acquired the access code to Warlord's prototype stash 12005 | -7/Data Miner | Received God Mode back door access code from Data Miner 12038 | -7/Data Miner | Destroyed Data Miner 12041 | -7/Data Miner | Found Prototype Hackware 12043 | -7/Data Miner | Found Prototype Hackware 12046 | -7/Data Miner | Found Prototype Hackware 12047 | -7/Data Miner | Data Conduit disabled 12129 | -7/Data Miner | Lost 4 parts (2n1u1w) 12199 | -7/Data Miner | Found Prototype Device 12199 | -7/Data Miner | Identified Exp. Thermal Shield 12454 | -7/Data Miner | Entered Proximity Caves 12458 | -6/Proximity Caves | Attracted the attention of an 0b10 checkpoint 12496 | -6/Proximity Caves | Spotted B-75 Beast 12497 | -6/Proximity Caves | Core integrity fell below 50% 12504 | -6/Proximity Caves | Lost 3 parts (3w) 12509 | -6/Proximity Caves | Destroyed 8 combat bots 12746 | -6/Proximity Caves | Build established: Scavenger-Mutant 12919 | -6/Proximity Caves | Discovered exit to Factory (range 12) 12932 | -6/Proximity Caves | Entered Factory 12932 | -6/Factory | Evolved 2 slots: Propulsion x1, Utility x1 12933 | -6/Factory | Loaded intel: 52 interactive machine locations 13524 | -6/Factory | Lost 3 parts (2u1w) 13588 | -6/Factory | Spotted B-75 Beast 13709 | -6/Factory | Self-destructed Last Messages --------------- 13645_ System corrupted by crushing effect (+2). 13645_ Knocked back. 13647_ Overheating: Matter decay (-31). 13655_ Overheating: Matter decay (-56). 13655_ B-48 Gladiator heat damages Lgt. Treads. 13656_ Overheating: Enh. Flexi-carbon Leg damaged (-32). 13656_ Overheating: F-cell Engine damaged (-45). 13656_ Overheating: Hcp. Storage Unit damaged (-92). 13666_ System corrupted: Energy discharge (-130). 13674_ G-50 Soldier suffers critical hit (Burn). 13677_ Melted Hvy. Laser. 13678_ G-50 Soldier heat damages core (-12). 13678_ G-50 Soldier critical meltdown. 13681_ Acquired 66 matter. 13687_ ALERT: Cargo convoy en route, clear transfer corridor. 13702_ Imp. Light Armor Plating destroyed. 13706_ Mak. Laser permanently disabled. 13706_ Overheating: Short circuit. 13708_ Overheating: System interference. 13708_ Plasma Rifle temporarily disabled. Map ----- +----------------------------------------------------+ | ???# #???## ###########"############## | | ########+########## #???#??????##??????? | | #??##??###???###??? | | ^ #??##???????#???? """ """ | | #?#?#####????#??? """ """ | | #####"# ##???#??# """ """ | | # **! #??#???# | | #####/########## #! *! # ?? ??# """ """ | | # ! % # # # *! #?##???#! """ """ | | ?# """" # # # #???#??# """ """ | | / # """" # / + #??#??## | | + """" # # # "" #???#?## | | # """" # # # G" ##??#?## | | !!!# """"=+% # # "" #???#??########## | | !!!# """" # # # ##???????????#??? | | !! # [ """" # # ###############??????????? | | # % # # # #??????????? | | !!"""####### # [+! * #??????????? | | ! " ##??#??# + %# ]** #??????????? | | "##??#???# # # #??????????? | | ! #?#?#???#####+## #= #?????#????? | | "????#?##???## # #??????????? | | #?#????##??#?# #gg = #???????#??? | | ##?????######### # [ #??????????? | | ???##?### ### #b ###???????#? | | ?#??### [ # g@ #??#???????? | | ??##?# =% # # ###????????? | | ?????# #! + ################?????????? | | ???#?## #[ #+####+#+######?#????#??#??????#??? | | ?#???# # ! #???#???????#????????? | | ????## =%* " " " " " #?####??#??#?????????? | | ???#?## # # " " " " " #????????????????????? | | ??##?## # " " " " " #?#??????????????????? | | ?????# # # ## " " " " " #???????#????????????? | | ???#?########### " " " " " #?????#??????????????? | | ???????????????# " " " " " ##???????#?#?????????? | | ???#???????????# " " " " " #????????????????????? | | ??????????#????# " " " " " ##???????????????????? | | ??????????#????# " " " " " #???????#????????????? | | ???????#???????# #?????#??????????????? | | ????#??????????# ] #????????????????????? | | ??????#????????##############????????????????????? | | ??????????##???????????#?????????????????????????? | | ????????????????##???????????????????????????????? | | ???????????#?#????????#??????????????????????????? | | ??????????#?#??#?????????????????????????????????? | | ??????????????????????????????????#??????????????? | | ??? ???????????????? ?? ?? ?????????????????????? | | ?????????????????????????????????????????????????? | | ???????? ????????????????????????????????????????? | +----------------------------------------------------+ Best States ------------- Heat Dissipation 61 Energy Generation 21 Energy Capacity 825 Matter Stores 500 Matter Capacity 500 Sight Range 20 Robot Scan Range 20 Terrain Scan Range 20 Terrain Scan Density 10 Jamming Range 8 Armor Coverage 825 Resistance: TH 30 Evasion (%) 55 Targeting Accuracy 8 Armor Integrity Analysis 20 Recoil Reduction 3 Matter Filtering 30 Particle Charging 25 Authchip Count 2 Item Schematics ----------------- Hcp. Storage Unit | -8/Materials | Hacked Exp. Sensor Array | -8/Materials | Scanalyzed Gauss Rifle | -8/Materials | Scanalyzed Axe | -8/Materials | Extracted Powered Armor | -7/Factory | Scanalyzed Combat Drone Bay | -7/Data Miner | Free Lgt. Regenerative Plating | -7/Data Miner | Free Biomechanical Wings | -7/Data Miner | Free Gravity Neutralizing Apparatus | -7/Data Miner | Free Antimatter Cannon | -7/Data Miner | Free Nuclear Pulse Array | -7/Data Miner | Free Overload Amplifier | -7/Data Miner | Free Variable Charge Gun | -7/Data Miner | Free Imp. Cryofiber Web | -7/Data Miner | Free Enh. Gauss Cannon | -7/Data Miner | Free Dispersion Rifle | -7/Data Miner | Free Robot Schematics ------------------ G-47 Trooper | -7/Data Miner | Free L-41 Fighter | -7/Data Miner | Free X-67 Chaingunner | -7/Data Miner | Free E-15 Imp | -7/Data Miner | Free B-48 Gladiator | -7/Data Miner | Free H-66 Slayer | -7/Data Miner | Free M-22 Extractor | -7/Data Miner | Free Fabricated ------------ Gauss Rifle | x2 | -7/Factory | Authchip Alien Tech Used ----------------- None Achievements -------------- None Challenges ------------ None Game ------ Seed FrostHelicalDoomcannon Manual? 0 Play Time 01:14:42 Cumulative 405.9 hours Start 2021.10.25 @ 19:23:17 End 2021.10.25 @ 21:08:14 Sessions 1 Manual Loads 0 Difficulty Rogue Special Mode None Game No. 413 Rogue 413 Adventurer 0 Explorer 0 Win Type - Total 7 Types 6/0/0/1/0/0/0/0/0 Lore% 79 Gallery% 91 Achievement% 69 Wizard Run 0 Options --------- ASCII 0 Keyboard 0 Movement Mouse Keybinds 1 Fullscreen 2 Font 24/Smallcaps Map View 76x50 Tactical HUD 1 Map Filters NONE Filters NONE Steam 1 RUN: 6a8cbd9c-dc4e-4c2b-8caf-dfdfecf4a2bb